[Event "Titled Tuesday Blitz May 9 Late 2023"]
[White "Pasti, Aron"]
[Black "Sun, Rick"]
[WhiteFideId "785857"]
[BlackFideId "30909481"]
[WhiteElo "2173"]
[BlackElo "2169"]
[Result "1-0"]
[Round "08"]
[TimeControl "180+2"]
[Date "2023.05.09"]
[WhiteClock "0:01:22"]
[BlackClock "0:00:00"]

1. e4 {[%clk 0:02:50]}  d6 {[%clk 0:03:00]} 2. d4 {[%clk 0:02:50]}  Nf6 {[%clk 0:03:01]} 3. Nc3 {[%clk 0:02:50]}  Nbd7 {[%clk 0:03:02]} 4. Nf3 {[%clk 0:02:50]}  e5 {[%clk 0:03:02]} 5. Bc4 {[%clk 0:02:50]}  Be7 {[%clk 0:03:03]} 6. O-O {[%clk 0:02:50]}  O-O {[%clk 0:03:03]} 7. Re1 {[%clk 0:02:51]}  c6 {[%clk 0:03:03]} 8. a4 {[%clk 0:02:51]}  Qc7 {[%clk 0:03:03]} 9. h3 {[%clk 0:02:51]}  h6 {[%clk 0:03:04]} 10. Be3 {[%clk 0:02:45]}  Re8 {[%clk 0:03:04]} 11. Nh4 {[%clk 0:02:33]}  Nf8 {[%clk 0:01:52]} 12. dxe5 {[%clk 0:02:20]}  dxe5 {[%clk 0:01:52]} 13. Nf5 {[%clk 0:02:20]}  Be6 {[%clk 0:01:32]} 14. Bxe6 {[%clk 0:02:06]}  Nxe6 {[%clk 0:01:33]} 15. Qf3 {[%clk 0:02:06]}  Kh7 {[%clk 0:01:26]} 16. a5 {[%clk 0:02:01]}  Bf8 {[%clk 0:00:57]} 17. g4 {[%clk 0:01:52]}  Ng5 {[%clk 0:00:51]} 18. Qg2 {[%clk 0:01:51]}  g6 {[%clk 0:00:46]} 19. h4 {[%clk 0:01:50]}  gxf5 {[%clk 0:00:43]} 20. hxg5 {[%clk 0:01:47]}  Nxg4 {[%clk 0:00:44]} 21. exf5 {[%clk 0:01:47]}  Nxe3 {[%clk 0:00:42]} 22. g6+ {[%clk 0:01:45]}  fxg6 {[%clk 0:00:39]} 23. fxg6+ {[%clk 0:01:46]}  Kh8 {[%clk 0:00:36]} 24. Rxe3 {[%clk 0:01:47]}  Bg7 {[%clk 0:00:31]} 25. Ne4 {[%clk 0:01:44]}  Rf8 {[%clk 0:00:32]} 26. Ng5 {[%clk 0:01:41]}  Rf5 {[%clk 0:00:21]} 27. Nf7+ {[%clk 0:01:38]}  Kg8 {[%clk 0:00:21]} 28. Qh3 {[%clk 0:01:34]}  Qd7 {[%clk 0:00:20]} 29. Rf3 {[%clk 0:01:24]}  Rxf3 {[%clk 0:00:01]} 30. Qxd7 {[%clk 0:01:23]}  Rf8 {[%clk 0:00:00]} 31. Qe6 {[%clk 0:01:22]} 1-0


[Site "https://www.chess.com"]

[Event "Titled Tuesday Blitz May 9 Late 2023"]
[White "Hoffmann, Asa"]
[Black "Vlassov, Nikolai"]
[WhiteFideId "2001470"]
[BlackFideId "4103360"]
[WhiteElo "2117"]
[BlackElo "2324"]
[Result "0-1"]
[Round "08"]
[TimeControl "180+2"]
[Date "2023.05.09"]
[WhiteClock "0:00:33"]
[BlackClock "0:00:38"]

1. d4 {[%clk 0:02:59]}  Nf6 {[%clk 0:02:59]} 2. Bg5 {[%clk 0:02:58]}  e6 {[%clk 0:02:59]} 3. Nd2 {[%clk 0:02:57]}  h6 {[%clk 0:02:59]} 4. Bh4 {[%clk 0:02:56]}  c5 {[%clk 0:02:57]} 5. e3 {[%clk 0:02:56]}  b6 {[%clk 0:02:58]} 6. Bd3 {[%clk 0:02:55]}  Bb7 {[%clk 0:02:58]} 7. Ngf3 {[%clk 0:02:55]}  g5 {[%clk 0:02:58]} 8. Bg3 {[%clk 0:02:55]}  g4 {[%clk 0:02:58]} 9. Nh4 {[%clk 0:02:49]}  Rg8 {[%clk 0:02:58]} 10. c3 {[%clk 0:02:43]}  Be7 {[%clk 0:02:57]} 11. Qc2 {[%clk 0:02:32]}  cxd4 {[%clk 0:02:47]} 12. exd4 {[%clk 0:02:29]}  Nd5 {[%clk 0:02:42]} 13. Ng6 {[%clk 0:02:26]}  fxg6 {[%clk 0:02:39]} 14. Bxg6+ {[%clk 0:02:26]}  Kf8 {[%clk 0:02:39]} 15. O-O-O {[%clk 0:02:17]}  Bg5 {[%clk 0:02:39]} 16. Be4 {[%clk 0:02:13]}  Qf6 {[%clk 0:02:29]} 17. Kb1 {[%clk 0:02:05]}  Nc6 {[%clk 0:02:26]} 18. Rhf1 {[%clk 0:01:59]}  Ke7 {[%clk 0:02:04]} 19. Nc4 {[%clk 0:01:58]}  Bf4 {[%clk 0:01:56]} 20. Bxd5 {[%clk 0:01:48]}  exd5 {[%clk 0:01:55]} 21. Ne3 {[%clk 0:01:48]}  Bxe3 {[%clk 0:01:47]} 22. fxe3 {[%clk 0:01:48]}  Qg6 {[%clk 0:01:46]} 23. e4 {[%clk 0:01:41]}  Raf8 {[%clk 0:01:41]} 24. Rfe1 {[%clk 0:01:35]}  Kd8 {[%clk 0:01:39]} 25. exd5 {[%clk 0:01:31]}  Qxc2+ {[%clk 0:01:38]} 26. Kxc2 {[%clk 0:01:31]}  Na5 {[%clk 0:01:34]} 27. d6 {[%clk 0:01:14]}  Bxg2 {[%clk 0:01:31]} 28. Re7 {[%clk 0:01:12]}  Kc8 {[%clk 0:01:14]} 29. b3 {[%clk 0:01:11]}  h5 {[%clk 0:01:10]} 30. Rd2 {[%clk 0:01:07]}  Bh1 {[%clk 0:01:04]} 31. c4 {[%clk 0:01:03]}  Nc6 {[%clk 0:01:03]} 32. Rh7 {[%clk 0:00:56]}  Be4+ {[%clk 0:01:01]} 33. Kc3 {[%clk 0:00:55]}  Bxh7 {[%clk 0:01:01]} 34. d5 {[%clk 0:00:55]}  Rf3+ {[%clk 0:01:00]} 35. Kb2 {[%clk 0:00:54]}  Nb4 {[%clk 0:01:00]} 36. a3 {[%clk 0:00:51]}  Nd3+ {[%clk 0:01:00]} 37. Kc3 {[%clk 0:00:50]}  Re8 {[%clk 0:00:58]} 38. b4 {[%clk 0:00:49]}  Nc5+ {[%clk 0:00:51]} 39. Kb2 {[%clk 0:00:46]}  Ne4 {[%clk 0:00:42]} 40. Rc2 {[%clk 0:00:43]}  Nxd6 {[%clk 0:00:39]} 41. Bxd6 {[%clk 0:00:40]}  Bxc2 {[%clk 0:00:39]} 42. Kxc2 {[%clk 0:00:33]}  Re2+ {[%clk 0:00:38]} 0-1


[Site "https://www.chess.com"]

[Event "Titled Tuesday Blitz May 9 Late 2023"]
[White "Komov, Roman"]
[Black "Itkis, Boris"]
[WhiteFideId "24175714"]
[BlackFideId "1209167"]
[WhiteElo "2189"]
[BlackElo "2216"]
[Result "1-0"]
[Round "08"]
[TimeControl "180+2"]
[Date "2023.05.09"]
[WhiteClock "0:00:34"]
[BlackClock "0:00:09"]

1. Nf3 {[%clk 0:03:00]}  d5 {[%clk 0:02:59]} 2. d4 {[%clk 0:03:00]}  Nf6 {[%clk 0:02:59]} 3. c4 {[%clk 0:02:59]}  e6 {[%clk 0:03:00]} 4. g3 {[%clk 0:02:59]}  Bb4+ {[%clk 0:02:57]} 5. Bd2 {[%clk 0:02:59]}  a5 {[%clk 0:02:57]} 6. Bg2 {[%clk 0:02:58]}  O-O {[%clk 0:02:57]} 7. O-O {[%clk 0:02:56]}  dxc4 {[%clk 0:02:57]} 8. Qc2 {[%clk 0:02:52]}  Bxd2 {[%clk 0:02:57]} 9. Nbxd2 {[%clk 0:02:52]}  b5 {[%clk 0:02:57]} 10. a4 {[%clk 0:02:51]}  c6 {[%clk 0:02:56]} 11. b3 {[%clk 0:02:50]}  cxb3 {[%clk 0:02:53]} 12. Nxb3 {[%clk 0:02:51]}  b4 {[%clk 0:02:46]} 13. Ne5 {[%clk 0:02:49]}  Ba6 {[%clk 0:02:42]} 14. Rfd1 {[%clk 0:02:46]}  Nd5 {[%clk 0:02:41]} 15. Nc5 {[%clk 0:02:32]}  Nc3 {[%clk 0:02:09]} 16. Rd2 {[%clk 0:02:30]}  Ra7 {[%clk 0:01:54]} 17. e3 {[%clk 0:02:21]}  Qb6 {[%clk 0:01:47]} 18. h4 {[%clk 0:02:13]}  f6 {[%clk 0:01:46]} 19. Ned3 {[%clk 0:01:44]}  Nd7 {[%clk 0:01:46]} 20. Nxe6 {[%clk 0:01:43]}  Re8 {[%clk 0:01:44]} 21. Ndf4 {[%clk 0:01:41]}  Kh8 {[%clk 0:01:21]} 22. h5 {[%clk 0:01:37]}  c5 {[%clk 0:01:20]} 23. h6 {[%clk 0:01:26]}  Rxe6 {[%clk 0:01:05]} 24. hxg7+ {[%clk 0:01:25]}  Kxg7 {[%clk 0:01:04]} 25. Nxe6+ {[%clk 0:01:17]}  Qxe6 {[%clk 0:01:05]} 26. Kh2 {[%clk 0:01:06]}  Rc7 {[%clk 0:00:56]} 27. Rh1 {[%clk 0:01:03]}  cxd4 {[%clk 0:00:54]} 28. Rxd4 {[%clk 0:01:02]}  Ne5 {[%clk 0:00:54]} 29. Be4 {[%clk 0:00:51]}  Qe7 {[%clk 0:00:35]} 30. Kg2 {[%clk 0:00:43]}  Ne2 {[%clk 0:00:33]} 31. Rxh7+ {[%clk 0:00:41]}  Kf8 {[%clk 0:00:31]} 32. Qxc7 {[%clk 0:00:39]}  Qxc7 {[%clk 0:00:26]} 33. Rxc7 {[%clk 0:00:40]}  Nxd4 {[%clk 0:00:23]} 34. exd4 {[%clk 0:00:41]}  Nc4 {[%clk 0:00:16]} 35. Bd3 {[%clk 0:00:35]}  b3 {[%clk 0:00:15]} 36. Bxc4 {[%clk 0:00:35]}  Bxc4 {[%clk 0:00:12]} 37. Rxc4 {[%clk 0:00:33]}  b2 {[%clk 0:00:09]} 38. Rc8+ {[%clk 0:00:34]} 1-0


[Site "https://www.chess.com"]

[Event "Titled Tuesday Blitz May 9 Late 2023"]
[White "Bruedigam, Martin"]
[Black "Pavlidou, Ekaterini"]
[WhiteFideId "24608033"]
[BlackFideId "4213262"]
[WhiteElo "2331"]
[BlackElo "2126"]
[Result "1-0"]
[Round "08"]
[TimeControl "180+2"]
[Date "2023.05.09"]
[WhiteClock "0:01:34"]
[BlackClock "0:00:56"]

1. d4 {[%clk 0:03:00]}  Nf6 {[%clk 0:02:59]} 2. c4 {[%clk 0:03:01]}  e6 {[%clk 0:02:59]} 3. Nc3 {[%clk 0:03:01]}  Bb4 {[%clk 0:02:58]} 4. Bd2 {[%clk 0:03:02]}  O-O {[%clk 0:02:55]} 5. Nf3 {[%clk 0:03:01]}  c5 {[%clk 0:02:55]} 6. dxc5 {[%clk 0:03:00]}  Na6 {[%clk 0:02:54]} 7. g3 {[%clk 0:02:59]}  Nxc5 {[%clk 0:02:53]} 8. Bg2 {[%clk 0:02:59]}  Bxc3 {[%clk 0:02:50]} 9. Bxc3 {[%clk 0:02:59]}  Nfe4 {[%clk 0:02:51]} 10. Bd4 {[%clk 0:02:56]}  d6 {[%clk 0:02:49]} 11. O-O {[%clk 0:02:55]}  e5 {[%clk 0:02:48]} 12. Be3 {[%clk 0:02:55]}  Be6 {[%clk 0:02:46]} 13. b3 {[%clk 0:02:53]}  a5 {[%clk 0:02:44]} 14. Qc2 {[%clk 0:02:50]}  h6 {[%clk 0:02:43]} 15. Nxe5 {[%clk 0:02:45]}  Bf5 {[%clk 0:02:34]} 16. Nd3 {[%clk 0:02:42]}  Nxd3 {[%clk 0:02:30]} 17. exd3 {[%clk 0:02:38]}  Nc5 {[%clk 0:02:25]} 18. Rad1 {[%clk 0:02:36]}  Qf6 {[%clk 0:02:17]} 19. Bxc5 {[%clk 0:02:22]}  dxc5 {[%clk 0:02:17]} 20. Bxb7 {[%clk 0:02:22]}  Rad8 {[%clk 0:02:17]} 21. Be4 {[%clk 0:02:21]}  Rd4 {[%clk 0:02:15]} 22. Bxf5 {[%clk 0:02:20]}  Qxf5 {[%clk 0:02:15]} 23. Rfe1 {[%clk 0:02:20]}  Rfd8 {[%clk 0:02:13]} 24. Re3 {[%clk 0:02:19]}  h5 {[%clk 0:02:10]} 25. Rde1 {[%clk 0:02:09]}  Kh7 {[%clk 0:02:04]} 26. Re5 {[%clk 0:02:04]}  Qg6 {[%clk 0:01:50]} 27. Qe2 {[%clk 0:02:01]}  f5 {[%clk 0:01:50]} 28. Qf3 {[%clk 0:01:53]}  Rf8 {[%clk 0:01:49]} 29. Rxc5 {[%clk 0:01:50]}  Qd6 {[%clk 0:01:09]} 30. Qxh5+ {[%clk 0:01:35]}  Kg8 {[%clk 0:01:07]} 31. Rxf5 {[%clk 0:01:35]}  Rxd3 {[%clk 0:00:56]} 32. Rxf8+ {[%clk 0:01:34]} 1-0


[Site "https://www.chess.com"]

[Event "Titled Tuesday Blitz May 9 Late 2023"]
[White "Janaszak, Dawid"]
[Black "Sarkar, Justin"]
[WhiteFideId "1119206"]
[BlackFideId "2010011"]
[WhiteElo "2220"]
[BlackElo "2168"]
[Result "0-1"]
[Round "08"]
[TimeControl "180+2"]
[Date "2023.05.09"]
[WhiteClock "0:00:15"]
[BlackClock "0:00:17"]

1. e4 {[%clk 0:03:00]}  e5 {[%clk 0:02:47]} 2. Nf3 {[%clk 0:02:59]}  Nc6 {[%clk 0:02:47]} 3. d4 {[%clk 0:03:00]}  exd4 {[%clk 0:02:46]} 4. Nxd4 {[%clk 0:03:01]}  Nf6 {[%clk 0:02:46]} 5. Nxc6 {[%clk 0:03:01]}  bxc6 {[%clk 0:02:45]} 6. e5 {[%clk 0:03:01]}  Qe7 {[%clk 0:02:45]} 7. Qe2 {[%clk 0:03:02]}  Nd5 {[%clk 0:02:44]} 8. h4 {[%clk 0:03:02]}  a5 {[%clk 0:02:30]} 9. a3 {[%clk 0:02:54]}  Ba6 {[%clk 0:02:26]} 10. c4 {[%clk 0:02:53]}  a4 {[%clk 0:02:19]} 11. g3 {[%clk 0:02:45]}  Nb6 {[%clk 0:02:13]} 12. Nd2 {[%clk 0:02:42]}  d5 {[%clk 0:02:03]} 13. exd6 {[%clk 0:02:26]}  cxd6 {[%clk 0:01:59]} 14. Ne4 {[%clk 0:01:57]}  Nxc4 {[%clk 0:01:52]} 15. Qc2 {[%clk 0:01:19]}  d5 {[%clk 0:01:46]} 16. Bd3 {[%clk 0:00:50]}  f5 {[%clk 0:01:35]} 17. Bg5 {[%clk 0:00:50]}  Qe6 {[%clk 0:01:33]} 18. O-O {[%clk 0:00:49]}  fxe4 {[%clk 0:01:31]} 19. Be2 {[%clk 0:00:47]}  Bb5 {[%clk 0:01:20]} 20. Qc3 {[%clk 0:00:35]}  Qe5 {[%clk 0:01:06]} 21. Qc1 {[%clk 0:00:20]}  Bc5 {[%clk 0:01:03]} 22. Bh5+ {[%clk 0:00:19]}  g6 {[%clk 0:01:01]} 23. Bf4 {[%clk 0:00:20]}  Qxh5 {[%clk 0:00:58]} 24. Qc3 {[%clk 0:00:17]}  O-O {[%clk 0:00:56]} 25. b3 {[%clk 0:00:17]}  axb3 {[%clk 0:00:54]} 26. a4 {[%clk 0:00:18]}  b2 {[%clk 0:00:42]} 27. Ra2 {[%clk 0:00:17]}  Rxa4 {[%clk 0:00:32]} 28. Rxb2 {[%clk 0:00:17]}  Nxb2 {[%clk 0:00:26]} 29. Qxc5 {[%clk 0:00:18]}  Nd3 {[%clk 0:00:24]} 30. Qe7 {[%clk 0:00:17]}  Nxf4 {[%clk 0:00:22]} 31. Rc1 {[%clk 0:00:16]}  Ne2+ {[%clk 0:00:21]} 32. Kg2 {[%clk 0:00:16]}  Nxc1 {[%clk 0:00:17]} 33. Qe6+ {[%clk 0:00:16]}  Rf7 {[%clk 0:00:18]} 34. Qe8+ {[%clk 0:00:15]}  Kg7 {[%clk 0:00:17]} 0-1


[Site "https://www.chess.com"]

[Event "Titled Tuesday Blitz May 9 Late 2023"]
[White "Martinez, Shawn"]
[Black "tufferguy"]
[WhiteFideId "2039770"]
[WhiteElo "2174"]
[BlackElo "2568"]
[Result "1-0"]
[Round "08"]
[TimeControl "180+2"]
[Date "2023.05.09"]
[WhiteClock "0:00:09"]
[BlackClock "0:00:01"]

1. e4 {[%clk 0:03:00]}  e6 {[%clk 0:02:55]} 2. d4 {[%clk 0:03:00]}  d5 {[%clk 0:02:55]} 3. Bd3 {[%clk 0:03:01]}  dxe4 {[%clk 0:02:48]} 4. Bxe4 {[%clk 0:03:01]}  Nf6 {[%clk 0:02:48]} 5. Bf3 {[%clk 0:03:02]}  Be7 {[%clk 0:02:48]} 6. Be3 {[%clk 0:02:58]}  O-O {[%clk 0:02:48]} 7. Ne2 {[%clk 0:02:58]}  Nbd7 {[%clk 0:02:43]} 8. O-O {[%clk 0:02:57]}  e5 {[%clk 0:02:43]} 9. Nbc3 {[%clk 0:02:57]}  c6 {[%clk 0:02:41]} 10. Ng3 {[%clk 0:02:50]}  exd4 {[%clk 0:02:30]} 11. Bxd4 {[%clk 0:02:45]}  Bc5 {[%clk 0:02:30]} 12. Re1 {[%clk 0:02:42]}  Bxd4 {[%clk 0:02:26]} 13. Qxd4 {[%clk 0:02:41]}  Nb6 {[%clk 0:02:26]} 14. Qh4 {[%clk 0:02:35]}  Be6 {[%clk 0:02:25]} 15. Rad1 {[%clk 0:02:25]}  Nfd5 {[%clk 0:02:25]} 16. Qxd8 {[%clk 0:02:13]}  Raxd8 {[%clk 0:02:25]} 17. Nce4 {[%clk 0:02:07]}  Nb4 {[%clk 0:02:14]} 18. c3 {[%clk 0:01:57]}  Nd3 {[%clk 0:02:07]} 19. Re2 {[%clk 0:01:57]}  Ne5 {[%clk 0:02:08]} 20. Red2 {[%clk 0:01:52]}  Nxf3+ {[%clk 0:02:05]} 21. gxf3 {[%clk 0:01:53]}  Rxd2 {[%clk 0:02:02]} 22. Rxd2 {[%clk 0:01:53]}  Nc4 {[%clk 0:02:02]} 23. Rd4 {[%clk 0:01:42]}  Ne5 {[%clk 0:01:45]} 24. Kg2 {[%clk 0:01:40]}  Bd5 {[%clk 0:01:24]} 25. Nf5 {[%clk 0:01:33]}  Re8 {[%clk 0:01:22]} 26. Nfd6 {[%clk 0:01:23]}  Rb8 {[%clk 0:00:56]} 27. c4 {[%clk 0:01:18]}  Be6 {[%clk 0:00:56]} 28. b3 {[%clk 0:01:10]}  Kf8 {[%clk 0:00:54]} 29. Nc5 {[%clk 0:01:06]}  Ke7 {[%clk 0:00:51]} 30. Ndxb7 {[%clk 0:01:03]}  g5 {[%clk 0:00:44]} 31. a4 {[%clk 0:00:52]}  Ng6 {[%clk 0:00:41]} 32. Na5 {[%clk 0:00:43]}  Nf4+ {[%clk 0:00:35]} 33. Kf1 {[%clk 0:00:41]}  Rc8 {[%clk 0:00:25]} 34. Ke1 {[%clk 0:00:25]}  h6 {[%clk 0:00:15]} 35. Nab7 {[%clk 0:00:20]}  Kf6 {[%clk 0:00:13]} 36. a5 {[%clk 0:00:20]}  Ke5 {[%clk 0:00:13]} 37. Re4+ {[%clk 0:00:18]}  Kf6 {[%clk 0:00:13]} 38. a6 {[%clk 0:00:17]}  Rh8 {[%clk 0:00:10]} 39. Nd6 {[%clk 0:00:14]}  Rd8 {[%clk 0:00:09]} 40. Ncb7 {[%clk 0:00:12]}  Rd7 {[%clk 0:00:10]} 41. c5 {[%clk 0:00:11]}  Nd3+ {[%clk 0:00:09]} 42. Ke2 {[%clk 0:00:09]}  Nxc5 {[%clk 0:00:09]} 43. Ne8+ {[%clk 0:00:06]}  Ke7 {[%clk 0:00:04]} 44. Nxc5 {[%clk 0:00:07]}  Rd5 {[%clk 0:00:02]} 45. Nxe6 {[%clk 0:00:06]}  fxe6 {[%clk 0:00:03]} 46. Ng7 {[%clk 0:00:06]}  e5 {[%clk 0:00:03]} 47. Nf5+ {[%clk 0:00:06]}  Kf6 {[%clk 0:00:03]} 48. Nxh6 {[%clk 0:00:07]}  Ra5 {[%clk 0:00:02]} 49. Ng4+ {[%clk 0:00:07]}  Ke6 {[%clk 0:00:02]} 50. Rxe5+ {[%clk 0:00:04]}  Rxe5+ {[%clk 0:00:02]} 51. Nxe5 {[%clk 0:00:05]}  Kxe5 {[%clk 0:00:03]} 52. Ke3 {[%clk 0:00:06]}  Kd5 {[%clk 0:00:01]} 53. f4 {[%clk 0:00:05]}  gxf4+ {[%clk 0:00:01]} 54. Kxf4 {[%clk 0:00:06]}  Kc5 {[%clk 0:00:02]} 55. h4 {[%clk 0:00:06]}  Kb4 {[%clk 0:00:02]} 56. h5 {[%clk 0:00:07]}  Kxb3 {[%clk 0:00:03]} 57. h6 {[%clk 0:00:07]}  c5 {[%clk 0:00:04]} 58. h7 {[%clk 0:00:08]}  c4 {[%clk 0:00:05]} 59. h8=Q {[%clk 0:00:08]}  c3 {[%clk 0:00:05]} 60. Qb8+ {[%clk 0:00:09]}  Kc2 {[%clk 0:00:05]} 61. Ke3 {[%clk 0:00:09]}  Kc1 {[%clk 0:00:02]} 62. Qb3 {[%clk 0:00:09]}  c2 {[%clk 0:00:01]} 63. Kd3 {[%clk 0:00:09]}  Kd1 {[%clk 0:00:01]} 64. Qxc2+ {[%clk 0:00:09]}  Ke1 {[%clk 0:00:01]} 65. Qe2# {[%clk 0:00:09]} 1-0


[Site "https://www.chess.com"]

[Event "Titled Tuesday Blitz May 9 Late 2023"]
[White "Bayo Milagro, Alvaro"]
[Black "Roman, Rodrigo"]
[WhiteFideId "22275240"]
[BlackFideId "3701220"]
[WhiteElo "2270"]
[BlackElo "1995"]
[Result "1-0"]
[Round "08"]
[TimeControl "180+2"]
[Date "2023.05.09"]
[WhiteClock "0:00:11"]
[BlackClock "0:00:06"]

1. Nf3 {[%clk 0:03:00]}  Nf6 {[%clk 0:02:34]} 2. g3 {[%clk 0:03:00]}  g6 {[%clk 0:02:35]} 3. b3 {[%clk 0:03:00]}  Bg7 {[%clk 0:02:35]} 4. Bb2 {[%clk 0:03:00]}  O-O {[%clk 0:02:35]} 5. Bg2 {[%clk 0:03:01]}  b6 {[%clk 0:02:35]} 6. O-O {[%clk 0:03:00]}  Bb7 {[%clk 0:02:35]} 7. c4 {[%clk 0:03:01]}  c5 {[%clk 0:02:35]} 8. e3 {[%clk 0:03:00]}  e6 {[%clk 0:02:35]} 9. Qe2 {[%clk 0:03:01]}  Qe7 {[%clk 0:02:35]} 10. Nc3 {[%clk 0:03:01]}  Nc6 {[%clk 0:02:34]} 11. d4 {[%clk 0:03:02]}  d5 {[%clk 0:02:35]} 12. cxd5 {[%clk 0:03:02]}  exd5 {[%clk 0:02:35]} 13. Rfd1 {[%clk 0:02:56]}  cxd4 {[%clk 0:02:32]} 14. Nxd4 {[%clk 0:02:57]}  Nxd4 {[%clk 0:02:32]} 15. Rxd4 {[%clk 0:02:57]}  Rfd8 {[%clk 0:02:15]} 16. Rad1 {[%clk 0:02:55]}  Rac8 {[%clk 0:02:06]} 17. R4d2 {[%clk 0:02:45]}  Ne4 {[%clk 0:01:23]} 18. Nxd5 {[%clk 0:01:44]}  Bxd5 {[%clk 0:01:19]} 19. Rxd5 {[%clk 0:01:45]}  Rxd5 {[%clk 0:01:00]} 20. Rxd5 {[%clk 0:01:44]}  Nc3 {[%clk 0:01:01]} 21. Bxc3 {[%clk 0:01:42]}  Bxc3 {[%clk 0:01:02]} 22. Bf3 {[%clk 0:01:22]}  Bf6 {[%clk 0:01:01]} 23. Kg2 {[%clk 0:01:22]}  Rd8 {[%clk 0:00:59]} 24. Qd3 {[%clk 0:01:21]}  Rxd5 {[%clk 0:00:58]} 25. Qxd5 {[%clk 0:01:22]}  Kg7 {[%clk 0:00:58]} 26. h4 {[%clk 0:01:19]}  h5 {[%clk 0:00:58]} 27. Qa8 {[%clk 0:01:18]}  Qa3 {[%clk 0:00:57]} 28. Bd5 {[%clk 0:01:11]}  Qe7 {[%clk 0:00:54]} 29. a4 {[%clk 0:01:05]}  Be5 {[%clk 0:00:38]} 30. Bb7 {[%clk 0:00:59]}  a5 {[%clk 0:00:36]} 31. Bd5 {[%clk 0:00:58]}  Bd6 {[%clk 0:00:36]} 32. Qc6 {[%clk 0:00:52]}  Bc5 {[%clk 0:00:36]} 33. Bc4 {[%clk 0:00:36]}  Qa7 {[%clk 0:00:29]} 34. Qf3 {[%clk 0:00:32]}  Qe7 {[%clk 0:00:27]} 35. Bd5 {[%clk 0:00:32]}  Qc7 {[%clk 0:00:26]} 36. e4 {[%clk 0:00:31]}  Qe7 {[%clk 0:00:24]} 37. e5 {[%clk 0:00:29]}  Bd4 {[%clk 0:00:20]} 38. e6 {[%clk 0:00:24]}  fxe6 {[%clk 0:00:20]} 39. Bc4 {[%clk 0:00:19]}  Bc5 {[%clk 0:00:18]} 40. Qe4 {[%clk 0:00:17]}  e5 {[%clk 0:00:18]} 41. Qd5 {[%clk 0:00:13]}  Qf6 {[%clk 0:00:16]} 42. f3 {[%clk 0:00:14]}  Bd4 {[%clk 0:00:09]} 43. Qd7+ {[%clk 0:00:14]}  Kh6 {[%clk 0:00:09]} 44. Bg8 {[%clk 0:00:10]}  Qg7 {[%clk 0:00:07]} 45. Qd8 {[%clk 0:00:11]}  e4 {[%clk 0:00:06]} 46. Qg5# {[%clk 0:00:11]} 1-0


[Site "https://www.chess.com"]

[Event "Titled Tuesday Blitz May 9 Late 2023"]
[White "Adewumi, Tanitoluwa"]
[Black "6PackPlayer"]
[WhiteFideId "30966396"]
[WhiteElo "2562"]
[BlackElo "2281"]
[Result "1-0"]
[Round "08"]
[TimeControl "180+2"]
[Date "2023.05.09"]
[WhiteClock "0:00:57"]
[BlackClock "0:00:04"]

1. e4 {[%clk 0:03:00]}  c6 {[%clk 0:03:00]} 2. d4 {[%clk 0:02:57]}  d5 {[%clk 0:03:00]} 3. exd5 {[%clk 0:02:58]}  cxd5 {[%clk 0:03:00]} 4. Bd3 {[%clk 0:02:59]}  Nc6 {[%clk 0:03:00]} 5. c3 {[%clk 0:02:59]}  Qc7 {[%clk 0:03:00]} 6. Ne2 {[%clk 0:02:56]}  Bg4 {[%clk 0:02:43]} 7. O-O {[%clk 0:02:55]}  Nf6 {[%clk 0:02:39]} 8. Bg5 {[%clk 0:02:53]}  e6 {[%clk 0:02:38]} 9. Qe1 {[%clk 0:02:49]}  Bxe2 {[%clk 0:02:32]} 10. Qxe2 {[%clk 0:02:47]}  Bd6 {[%clk 0:02:33]} 11. g3 {[%clk 0:02:48]}  h6 {[%clk 0:02:31]} 12. Be3 {[%clk 0:02:46]}  h5 {[%clk 0:02:23]} 13. Kg2 {[%clk 0:02:44]}  h4 {[%clk 0:02:23]} 14. Nd2 {[%clk 0:02:45]}  Rh5 {[%clk 0:02:07]} 15. Nf3 {[%clk 0:02:28]}  O-O-O {[%clk 0:01:14]} 16. Bg5 {[%clk 0:02:19]}  Rdh8 {[%clk 0:00:59]} 17. Bxh4 {[%clk 0:02:18]}  Ng4 {[%clk 0:00:37]} 18. h3 {[%clk 0:02:08]}  Nh6 {[%clk 0:00:33]} 19. Rae1 {[%clk 0:01:57]}  Nf5 {[%clk 0:00:27]} 20. Bxf5 {[%clk 0:01:49]}  exf5 {[%clk 0:00:27]} 21. Bg5 {[%clk 0:01:04]}  Rxh3 {[%clk 0:00:15]} 22. Bh4 {[%clk 0:01:01]}  R3xh4 {[%clk 0:00:14]} 23. Nxh4 {[%clk 0:01:00]}  g6 {[%clk 0:00:13]} 24. Rh1 {[%clk 0:00:59]}  f4 {[%clk 0:00:11]} 25. Qg4+ {[%clk 0:00:59]}  Kb8 {[%clk 0:00:11]} 26. Nf3 {[%clk 0:00:59]}  fxg3 {[%clk 0:00:04]} 27. Rxh8+ {[%clk 0:00:57]} 1-0


[Site "https://www.chess.com"]

[Event "Titled Tuesday Blitz May 9 Late 2023"]
[White "Vega Gutierrez, Sabrina"]
[Black "Lenaerts, Lennert"]
[WhiteFideId "2219026"]
[BlackFideId "211435"]
[WhiteElo "2209"]
[BlackElo "2334"]
[Result "0-1"]
[Round "08"]
[TimeControl "180+2"]
[Date "2023.05.09"]
[WhiteClock "0:00:00"]
[BlackClock "0:01:36"]

1. e4 {[%clk 0:03:00]}  e5 {[%clk 0:02:57]} 2. Nf3 {[%clk 0:03:00]}  Nc6 {[%clk 0:02:55]} 3. Nc3 {[%clk 0:03:01]}  Nf6 {[%clk 0:02:48]} 4. g3 {[%clk 0:03:01]}  d5 {[%clk 0:02:46]} 5. exd5 {[%clk 0:03:01]}  Nxd5 {[%clk 0:02:47]} 6. Bg2 {[%clk 0:03:02]}  Nxc3 {[%clk 0:02:46]} 7. bxc3 {[%clk 0:03:03]}  Bd6 {[%clk 0:02:47]} 8. O-O {[%clk 0:03:03]}  O-O {[%clk 0:02:47]} 9. Re1 {[%clk 0:03:03]}  h6 {[%clk 0:02:44]} 10. d4 {[%clk 0:02:56]}  exd4 {[%clk 0:02:43]} 11. cxd4 {[%clk 0:02:56]}  Re8 {[%clk 0:02:39]} 12. Rxe8+ {[%clk 0:02:40]}  Qxe8 {[%clk 0:02:40]} 13. Rb1 {[%clk 0:02:40]}  Rb8 {[%clk 0:02:38]} 14. Be3 {[%clk 0:02:26]}  b6 {[%clk 0:02:37]} 15. c4 {[%clk 0:02:14]}  Bf5 {[%clk 0:02:35]} 16. Rb5 {[%clk 0:02:13]}  Be4 {[%clk 0:02:31]} 17. Nh4 {[%clk 0:01:24]}  Bxg2 {[%clk 0:02:29]} 18. Kxg2 {[%clk 0:01:24]}  Rd8 {[%clk 0:02:20]} 19. Qg4 {[%clk 0:01:22]}  Kh8 {[%clk 0:02:14]} 20. Nf5 {[%clk 0:01:20]}  Bf8 {[%clk 0:02:13]} 21. Qf4 {[%clk 0:01:01]}  Na5 {[%clk 0:02:07]} 22. d5 {[%clk 0:00:46]}  c6 {[%clk 0:01:58]} 23. Bd4 {[%clk 0:00:29]}  Kh7 {[%clk 0:01:48]} 24. Rxa5 {[%clk 0:00:18]}  bxa5 {[%clk 0:01:49]} 25. d6 {[%clk 0:00:19]}  Qe6 {[%clk 0:01:45]} 26. c5 {[%clk 0:00:16]}  Qxa2 {[%clk 0:01:45]} 27. Ne3 {[%clk 0:00:10]}  Qe6 {[%clk 0:01:43]} 28. Qf3 {[%clk 0:00:10]}  Rc8 {[%clk 0:01:40]} 29. h4 {[%clk 0:00:02]}  a4 {[%clk 0:01:39]} 30. g4 {[%clk 0:00:02]}  a3 {[%clk 0:01:38]} 31. g5 {[%clk 0:00:00]}  a2 {[%clk 0:01:36]} 0-1


[Site "https://www.chess.com"]